Workbook

Sheet 減価償却
A1: ID | B1: 読込FLG | C1: 予算科目CD | D1: 借方科目CD | E1: 貸方科目CD | F1: 金額増 | G1: 金額減 | H1: 摘要 | I1: 発行日 | J1: 簿記項 | K1: 簿記目 | L1: 簿記節 | M1: 簿記略称 | N1: ４月－７月分 | O1: その他の月 | P1: 減価償却費総額 | Q1: 固定資産額
A2: 1 | B2: 10 | C2: 予算伝票始まり
A3: 2 | B3: 11 | C3: 予算科目CD | D3: 借方科目CD | E3: 貸方科目CD | F3: 金額増 | G3: 金額減 | H3: 摘要
A4: 3 | B4: 0 | C4: 都市部
A5: 4 | B5: 1 | C5: 210117-0100 | D5: 711080-1000 | E5: 111015-1000 | F5: 1495779
A6: 5 | B6: 1 | C6: 210117-0100 | D6: 711080-1000 | E6: 111015-2000 | F6: 4105058
A7: 6 | B7: 1 | C7: 210117-0100 | D7: 711080-1000 | E7: 111025-1000 | F7: 2625691
A8: 7 | B8: 1 | C8: 210117-0100 | D8: 711080-1000 | E8: 111025-2000 | F8: 798475
A9: 8 | B9: 1 | C9: 210117-0100 | D9: 711080-1000 | E9: 111025-3000 | F9: 448188
A10: 9 | B10: 1 | C10: 210117-0100 | D10: 711080-1000 | E10: 111025-4000 | F10: 6900276
A11: 10 | B11: 1 | C11: 210117-0100 | D11: 711080-1000 | E11: 111025-5000 | F11: 10585578
A12: 11 | B12: 1 | C12: 210117-0100 | D12: 711080-1000 | E12: 111025-6000 | F12: 99979061
A13: 12 | B13: 1 | C13: 210117-0100 | D13: 711080-1000 | E13: 111025-7000 | F13: 2125569
A14: 13 | B14: 1 | C14: 210117-0100 | D14: 711080-1000 | E14: 111035-1000 | F14: 7742761
A15: 14 | B15: 1 | C15: 210117-0100 | D15: 711080-1000 | E15: 111035-2000 | F15: 2444997
A16: 15 | B16: 1 | C16: 210117-0100 | D16: 711080-1000 | E16: 111035-3000 | F16: 381263
A17: 16 | B17: 1 | C17: 210117-0100 | D17: 711080-1000 | E17: 111035-4000 | F17: 165939
A18: 17 | B18: 1 | C18: 210117-0100 | D18: 711080-1000 | E18: 111035-5000 | F18: 1014758
A19: 18 | B19: 1 | C19: 210117-0100 | D19: 711080-1000 | E19: 111035-6000 | F19: 3662719
A20: 19 | B20: 1 | C20: 210117-0100 | D20: 711080-1000 | E20: 111035-7000 | F20: 16166635
A21: 20 | B21: 1 | C21: 210117-0100 | D21: 711080-1000 | E21: 111045-1000 | F21: 827630
A22: 21 | B22: 1 | C22: 210117-0100 | D22: 711080-1000 | E22: 111055-1000 | F22: 1033232
A23: 22 | B23: 1 | C23: 210117-0500 | D23: 711080-3000 | E23: 111065-1000 | F23: 0
A24: 23 | B24: 1 | C24: 210117-0300 | D24: 711080-2000 | E24: 112010-1000 | F24: 32707926
A25: 24 | B25: 1 | C25: 210117-0300 | D25: 711080-2000 | E25: 112010-1000 | F25: 4956940
A26: 25 | B26: 1 | C26: 210117-0300 | D26: 711080-2000 | E26: 112010-2000 | F26: 17723739
A27: 26 | B27: 1 | C27: 210117-0300 | D27: 711080-2000 | E27: 112015-1000 | F27: 5049826
A28: 27 | B28: 1 | C28: 210117-0300 | D28: 711080-2000 | E28: 112020-1000 | F28: 0
A29: 28 | B29: 1 | C29: 210117-0300 | D29: 711080-2000 | E29: 112030-1000 | F29: 0
A30: 29 | B30: 0 | C30: 都祁 | F30: 0
A31: 30 | B31: 1 | C31: 210117-0700 | D31: 711080-1000 | E31: 111015-1000 | F31: 0
A32: 31 | B32: 1 | C32: 210117-0700 | D32: 711080-1000 | E32: 111015-2000 | F32: 934701
A33: 32 | B33: 1 | C33: 210117-0700 | D33: 711080-1000 | E33: 111025-1000 | F33: 107172
A34: 33 | B34: 1 | C34: 210117-0700 | D34: 711080-1000 | E34: 111025-2000 | F34: 1705847
A35: 34 | B35: 1 | C35: 210117-0700 | D35: 711080-1000 | E35: 111025-3000 | F35: 21156
A36: 35 | B36: 1 | C36: 210117-0700 | D36: 711080-1000 | E36: 111025-4000 | F36: 1787640
A37: 36 | B37: 1 | C37: 210117-0700 | D37: 711080-1000 | E37: 111025-5000 | F37: 253301
A38: 37 | B38: 1 | C38: 210117-0700 | D38: 711080-1000 | E38: 111025-6000 | F38: 8251834
A39: 38 | B39: 1 | C39: 210117-0700 | D39: 711080-1000 | E39: 111025-7000 | F39: 1128005
A40: 39 | B40: 1 | C40: 210117-0700 | D40: 711080-1000 | E40: 111035-1000 | F40: 1741626
A41: 40 | B41: 1 | C41: 210117-0700 | D41: 711080-1000 | E41: 111035-2000 | F41: 843840
A42: 41 | B42: 1 | C42: 210117-0700 | D42: 711080-1000 | E42: 111035-3000 | F42: 0
A43: 42 | B43: 1 | C43: 210117-0700 | D43: 711080-1000 | E43: 111035-4000 | F43: 755
A44: 43 | B44: 1 | C44: 210117-0700 | D44: 711080-1000 | E44: 111035-5000 | F44: 0
A45: 44 | B45: 1 | C45: 210117-0700 | D45: 711080-1000 | E45: 111035-6000 | F45: 110002
A46: 45 | B46: 1 | C46: 210117-0700 | D46: 711080-1000 | E46: 111035-7000 | F46: 1895523
A47: 46 | B47: 1 | C47: 210117-0700 | D47: 711080-1000 | E47: 111045-1000 | F47: 0
A48: 47 | B48: 1 | C48: 210117-0700 | D48: 711080-1000 | E48: 111055-1000 | F48: 0
A49: 48 | B49: 1 | C49: 210117-1100 | D49: 711080-3000 | E49: 111065-1000 | F49: 0
A50: 49 | B50: 1 | C50: 210117-0900 | D50: 711080-2000 | E50: 112010-1000 | F50: 0
A51: 50 | B51: 1 | C51: 210117-0900 | D51: 711080-2000 | E51: 112010-1000 | F51: 1105156
A52: 51 | B52: 1 | C52: 210117-0900 | D52: 711080-2000 | E52: 112010-2000 | F52: 167878
A53: 52 | B53: 1 | C53: 210117-0900 | D53: 711080-2000 | E53: 112015-1000 | F53: 1432500
A54: 53 | B54: 1 | C54: 210117-0900 | D54: 711080-2000 | E54: 112020-1000 | F54: 0
A55: 54 | B55: 1 | C55: 210117-0900 | D55: 711080-2000 | E55: 112030-1000 | F55: 0
A56: 55 | B56: 0 | C56: 月ヶ瀬 | F56: 0
A57: 56 | B57: 0 | C57: 210117-1300 | D57: 711080-1000 | E57: 111015-1000 | F57: 0
A58: 57 | B58: 1 | C58: 210117-1300 | D58: 711080-1000 | E58: 111015-2000 | F58: 207911
A59: 58 | B59: 1 | C59: 210117-1300 | D59: 711080-1000 | E59: 111025-1000 | F59: 71138
A60: 59 | B60: 1 | C60: 210117-1300 | D60: 711080-1000 | E60: 111025-2000 | F60: 545782
A61: 60 | B61: 1 | C61: 210117-1300 | D61: 711080-1000 | E61: 111025-3000 | F61: 69559
A62: 61 | B62: 1 | C62: 210117-1300 | D62: 711080-1000 | E62: 111025-4000 | F62: 501933
A63: 62 | B63: 1 | C63: 210117-1300 | D63: 711080-1000 | E63: 111025-5000 | F63: 130989
A64: 63 | B64: 1 | C64: 210117-1300 | D64: 711080-1000 | E64: 111025-6000 | F64: 1100221
A65: 64 | B65: 1 | C65: 210117-1300 | D65: 711080-1000 | E65: 111025-7000 | F65: 662686
A66: 65 | B66: 1 | C66: 210117-1300 | D66: 711080-1000 | E66: 111035-1000 | F66: 83720
A67: 66 | B67: 1 | C67: 210117-1300 | D67: 711080-1000 | E67: 111035-2000 | F67: 59224
A68: 67 | B68: 1 | C68: 210117-1300 | D68: 711080-1000 | E68: 111035-3000 | F68: 8745
A69: 68 | B69: 1 | C69: 210117-1300 | D69: 711080-1000 | E69: 111035-4000 | F69: 242
A70: 69 | B70: 0 | C70: 210117-1300 | D70: 711080-1000 | E70: 111035-5000 | F70: 0
A71: 70 | B71: 1 | C71: 210117-1300 | D71: 711080-1000 | E71: 111035-6000 | F71: 209211
A72: 71 | B72: 1 | C72: 210117-1300 | D72: 711080-1000 | E72: 111035-7000 | F72: 690346
A73: 72 | B73: 0 | C73: 210117-1300 | D73: 711080-1000 | E73: 111045-1000 | F73: 0
A74: 73 | B74: 1 | C74: 210117-1300 | D74: 711080-1000 | E74: 111055-1000 | F74: 6150
A75: 74 | B75: 0 | C75: 210117-1700 | D75: 711080-3000 | E75: 111065-1000 | F75: 0
A76: 75 | B76: 0 | C76: 210117-1500 | D76: 711080-2000 | E76: 112010-1000 | F76: 0
A77: 76 | B77: 0 | C77: 210117-1500 | D77: 711080-2000 | E77: 112010-1000 | F77: 0
A78: 77 | B78: 0 | C78: 210117-1500 | D78: 711080-2000 | E78: 112010-2000 | F78: 0
A79: 78 | B79: 2 | C79: 210117-1500 | D79: 711080-2000 | E79: 112015-1000 | F79: 1219431
A80: 79 | B80: 0 | C80: 210117-1500 | D80: 711080-2000 | E80: 112020-1000 | F80: 0
A81: 80 | B81: 0 | C81: 210117-1500 | D81: 711080-2000 | E81: 112030-1000 | F81: 0
A82: 81 | B82: 19 | C82: 予算伝票終わり | M82: 簿記略称 | N82: ４月－７月分 | O82: その他の月 | P82: 減価償却費総額 | Q82: 固定資産額
A83: 82 | B83: 20 | C83: 簿記伝票始まり
A84: 83 | B84: 21 | C84: 予算科目CD | D84: 借方科目CD | E84: 貸方科目CD | F84: 借方金額 | G84: 貸方金額 | H84: 摘要
A85: 84 | B85: 0 | C85: 都市部
A86: 85 | B86: 2 | D86: 711080-1000 | E86: 111015-1000 | F86: 1495779 | G86: 1495779 | H86: 減価償却 | J86: 有形固定資産 | K86: 建物 | L86: 事務所用建物 | N86: =$P86-$O86*8 -> 5983122 | O86: =ROUNDDOWN(P86/12,0) -> 1495779 | P86: 17949354 | Q86: 1248192762
A87: 86 | B87: 2 | D87: 711080-1000 | E87: 111015-2000 | F87: 4105058 | G87: 4105058 | H87: 減価償却 | J87: 有形固定資産 | K87: 建物 | L87: 施設用建物 | N87: =$P87-$O87*8 -> 16420237 | O87: =ROUNDDOWN(P87/12,0) -> 4105058 | P87: 49260701 | Q87: 2961821435
A88: 87 | B88: 2 | D88: 711080-1000 | E88: 111025-1000 | F88: 2625691 | G88: 2625691 | H88: 減価償却 | J88: 有形固定資産 | K88: 構築物 | L88: 導水設備 | N88: 10502773 | O88: 2625691 | P88: 31508301 | Q88: 2094542085
A89: 88 | B89: 2 | D89: 711080-1000 | E89: 111025-2000 | F89: 798475 | G89: 798475 | H89: 減価償却 | J89: 有形固定資産 | K89: 構築物 | L89: 取水設備 | N89: 3193907 | O89: 798475 | P89: 9581707 | Q89: 723828260
A90: 89 | B90: 2 | D90: 711080-1000 | E90: 111025-3000 | F90: 448188 | G90: 448188 | H90: 減価償却 | J90: 有形固定資産 | K90: 構築物 | L90: えん堤 | N90: 1792760 | O90: 448188 | P90: 5378264 | Q90: 632836368
A91: 90 | B91: 2 | D91: 711080-1000 | E91: 111025-4000 | F91: 6900276 | G91: 6900276 | H91: 減価償却 | J91: 有形固定資産 | K91: 構築物 | L91: 浄水設備 | N91: 27601108 | O91: 6900276 | P91: 82803316 | Q91: 4963620099
A92: 91 | B92: 2 | D92: 711080-1000 | E92: 111025-5000 | F92: 10585578 | G92: 10585578 | H92: 減価償却 | J92: 有形固定資産 | K92: 構築物 | L92: 配水設備 | N92: 42342319 | O92: 10585578 | P92: 127026943 | Q92: 7628031666
A93: 92 | B93: 2 | D93: 711080-1000 | E93: 111025-6000 | F93: 99979061 | G93: 99979061 | H93: 減価償却 | J93: 有形固定資産 | K93: 構築物 | L93: 配水管設備 | N93: 399916250 | O93: 99979061 | P93: 1199748738 | Q93: 63943887887
A94: 93 | B94: 0 | D94: 711080-1000 | E94: 111025-7000 | F94: 2125569 | G94: 2125569 | H94: 減価償却 | J94: 有形固定資産 | K94: 構築物 | L94: 諸設備 | N94: 8502276 | O94: 2125569 | P94: 25506828 | Q94: 1853111706
A95: 94 | B95: 0 | D95: 711080-1000 | E95: 111035-1000 | F95: 7742761 | G95: 7742761 | H95: 減価償却 | J95: 有形固定資産 | K95: 機械及び装置 | L95: 電気設備 | N95: 30971052 | O95: 7742761 | P95: 92913140 | Q95: 3970669184
A96: 95 | B96: 0 | D96: 711080-1000 | E96: 111035-2000 | F96: 2444997 | G96: 2444997 | H96: 減価償却 | J96: 有形固定資産 | K96: 機械及び装置 | L96: ポンプ設備 | N96: 9779999 | O96: 2444997 | P96: 29339975 | Q96: 1256090257
A97: 96 | B97: 0 | D97: 711080-1000 | E97: 111035-3000 | F97: 381263 | G97: 381263 | H97: 減価償却 | J97: 有形固定資産 | K97: 機械及び装置 | L97: 塩素滅菌設備 | N97: 1525060 | O97: 381263 | P97: 4575164 | Q97: 462873826
A98: 97 | B98: 0 | D98: 711080-1000 | E98: 111035-4000 | F98: 165939 | G98: 165939 | H98: 減価償却 | J98: 有形固定資産 | K98: 機械及び装置 | L98: 量水器 | N98: 663758 | O98: 165939 | P98: 1991270 | Q98: 774048554
A99: 98 | B99: 2 | D99: 711080-1000 | E99: 111035-5000 | F99: 1014758 | G99: 1014758 | H99: 減価償却 | J99: 有形固定資産 | K99: 機械及び装置 | L99: 通信設備 | N99: 4059036 | O99: 1014758 | P99: 12177100 | Q99: 206747440
A100: 99 | B100: 0 | D100: 711080-1000 | E100: 111035-6000 | F100: 3662719 | G100: 3662719 | H100: 減価償却 | J100: 有形固定資産 | K100: 機械及び装置 | L100: 計装設備 | N100: 14650877 | O100: 3662719 | P100: 43952629 | Q100: 5046118385
A101: 100 | B101: 0 | D101: 711080-1000 | E101: 111035-7000 | F101: 16166635 | G101: 16166635 | H101: 減価償却 | J101: 有形固定資産 | K101: 機械及び装置 | L101: その他機械装置 | N101: 64666549 | O101: 16166635 | P101: 193999629 | Q101: 5430666251
A102: 101 | B102: 0 | D102: 711080-1000 | E102: 111045-1000 | F102: 827630 | G102: 827630 | H102: 減価償却 | J102: 有形固定資産 | K102: 車両運搬具 | L102: 車両運搬具 | N102: 3310528 | O102: 827630 | P102: 9931568 | Q102: 105020051
A103: 102 | B103: 2 | D103: 711080-1000 | E103: 111055-1000 | F103: 1033232 | G103: 1033232 | H103: 減価償却 | J103: 有形固定資産 | K103: 器具備品 | L103: 器具備品 | N103: 4132937 | O103: 1033232 | P103: 12398793 | Q103: 190664317
A104: 103 | B104: 0 | D104: 711080-3000 | E104: 111065-1000 | F104: 0 | G104: 0 | H104: 減価償却 | J104: 有形固定資産 | K104: リース資産 | L104: リース資産 | N104: 0 | O104: 0 | P104: 0 | Q104: 0
A105: 104 | B105: 2 | D105: 711080-2000 | E105: 112010-1000 | F105: 32707926 | G105: 32707926 | H105: 減価償却 | J105: 無形固定資産 | K105: ダム使用権 | L105: 布目ダム使用権2 | N105: 130831715 | O105: 32707926 | P105: 392495123 | Q105: 9864022220
A106: 105 | B106: 2 | D106: 711080-2000 | E106: 112010-1000 | F106: 4956940 | G106: 4956940 | H106: 減価償却 | L106: 布目ダム使用権 | N106: 19827770 | O106: 4956940 | P106: 59483290 | Q106: 1941033718
A107: 106 | B107: 2 | D107: 711080-2000 | E107: 112010-2000 | F107: 17723739 | G107: 17723739 | H107: 減価償却 | J107: 無形固定資産 | K107: ダム使用権 | L107: 布目ダム（２次）使用権 | N107: 70894963 | O107: 17723739 | P107: 212684875 | Q107: 6727558415
A108: 107 | B108: 2 | D108: 711080-2000 | E108: 112015-1000 | F108: 5049826 | G108: 5049826 | H108: 減価償却 | J108: 無形固定資産 | K108: 水利権 | L108: 上津ダム水利権 | N108: 20199310 | O108: 5049826 | P108: 60597918 | Q108: 1187981161
A109: 108 | B109: 0 | D109: 711080-2000 | E109: 112020-1000 | F109: 0 | G109: 0 | H109: 減価償却 | J109: 無形固定資産 | K109: リース資産 | L109: リース資産 | N109: 0 | O109: 0 | P109: 0 | Q109: 0
A110: 109 | B110: 0 | D110: 711080-2000 | E110: 112030-1000 | F110: 0 | G110: 0 | H110: 減価償却 | J110: 無形固定資産 | K110: その他無形固定資産 | L110: その他無形固定資産 | N110: 0 | O110: 0 | P110: 0 | Q110: 0
A111: 110 | B111: 0 | C111: 都祁 | F111: 0 | G111: 0 | H111: 減価償却 | N111: 0 | O111: 0
A112: 111 | B112: 0 | D112: 711080-1000 | E112: 111015-1000 | F112: 0 | G112: 0 | H112: 減価償却 | J112: 有形固定資産 | K112: 建物 | L112: 事務所用建物 | N112: 0 | O112: 0 | P112: 0 | Q112: 0
A113: 112 | B113: 2 | D113: 711080-1000 | E113: 111015-2000 | F113: 934701 | G113: 934701 | H113: 減価償却 | J113: 有形固定資産 | K113: 建物 | L113: 施設用建物 | N113: 3738806 | O113: 934701 | P113: 11216414 | Q113: 295913004
A114: 113 | B114: 2 | D114: 711080-1000 | E114: 111025-1000 | F114: 107172 | G114: 107172 | H114: 減価償却 | J114: 有形固定資産 | K114: 構築物 | L114: 導水設備 | N114: 428690 | O114: 107172 | P114: 1286066 | Q114: 72749662
A115: 114 | B115: 2 | D115: 711080-1000 | E115: 111025-2000 | F115: 1705847 | G115: 1705847 | H115: 減価償却 | J115: 有形固定資産 | K115: 構築物 | L115: 取水設備 | N115: 6823390 | O115: 1705847 | P115: 20470166 | Q115: 624992083
A116: 115 | B116: 2 | D116: 711080-1000 | E116: 111025-3000 | F116: 21156 | G116: 21156 | H116: 減価償却 | J116: 有形固定資産 | K116: 構築物 | L116: えん堤 | N116: 84628 | O116: 21156 | P116: 253876 | Q116: 18003322
A117: 116 | B117: 2 | D117: 711080-1000 | E117: 111025-4000 | F117: 1787640 | G117: 1787640 | H117: 減価償却 | J117: 有形固定資産 | K117: 構築物 | L117: 浄水設備 | N117: 7150567 | O117: 1787640 | P117: 21451687 | Q117: 723510379
A118: 117 | B118: 2 | D118: 711080-1000 | E118: 111025-5000 | F118: 253301 | G118: 253301 | H118: 減価償却 | J118: 有形固定資産 | K118: 構築物 | L118: 配水設備 | N118: 1013213 | O118: 253301 | P118: 3039621 | Q118: 124038381
A119: 118 | B119: 2 | D119: 711080-1000 | E119: 111025-6000 | F119: 8251834 | G119: 8251834 | H119: 減価償却 | J119: 有形固定資産 | K119: 構築物 | L119: 配水管設備 | N119: 33007338 | O119: 8251834 | P119: 99022010 | Q119: 2164614235
A120: 119 | B120: 2 | D120: 711080-1000 | E120: 111025-7000 | F120: 1128005 | G120: 1128005 | H120: 減価償却 | J120: 有形固定資産 | K120: 構築物 | L120: 諸設備 | N120: 4512025 | O120: 1128005 | P120: 13536065 | Q120: 398994601
A121: 120 | B121: 2 | D121: 711080-1000 | E121: 111035-1000 | F121: 1741626 | G121: 1741626 | H121: 減価償却 | J121: 有形固定資産 | K121: 機械及び装置 | L121: 電気設備 | N121: 6966511 | O121: 1741626 | P121: 20899519 | Q121: 420901514
A122: 121 | B122: 2 | D122: 711080-1000 | E122: 111035-2000 | F122: 843840 | G122: 843840 | H122: 減価償却 | J122: 有形固定資産 | K122: 機械及び装置 | L122: ポンプ設備 | N122: 3375364 | O122: 843840 | P122: 10126084 | Q122: 187322650
A123: 122 | B123: 0 | D123: 711080-1000 | E123: 111035-3000 | F123: 0 | G123: 0 | H123: 減価償却 | J123: 有形固定資産 | K123: 機械及び装置 | L123: 塩素滅菌設備 | N123: 0 | O123: 0 | P123: 0 | Q123: 12308473
A124: 123 | B124: 2 | D124: 711080-1000 | E124: 111035-4000 | F124: 755 | G124: 755 | H124: 減価償却 | J124: 有形固定資産 | K124: 機械及び装置 | L124: 量水器 | N124: 3022 | O124: 755 | P124: 9062 | Q124: 2790023
A125: 124 | B125: 0 | D125: 711080-1000 | E125: 111035-5000 | F125: 0 | G125: 0 | H125: 減価償却 | J125: 有形固定資産 | K125: 機械及び装置 | L125: 通信設備 | N125: 0 | O125: 0 | P125: 0 | Q125: 0
A126: 125 | B126: 2 | D126: 711080-1000 | E126: 111035-6000 | F126: 110002 | G126: 110002 | H126: 減価償却 | J126: 有形固定資産 | K126: 機械及び装置 | L126: 計装設備 | N126: 440015 | O126: 110002 | P126: 1320031 | Q126: 51982724
A127: 126 | B127: 2 | D127: 711080-1000 | E127: 111035-7000 | F127: 1895523 | G127: 1895523 | H127: 減価償却 | J127: 有形固定資産 | K127: 機械及び装置 | L127: その他機械装置 | N127: 7582098 | O127: 1895523 | P127: 22746282 | Q127: 578025675
A128: 127 | B128: 0 | D128: 711080-1000 | E128: 111045-1000 | F128: 0 | G128: 0 | H128: 減価償却 | J128: 有形固定資産 | K128: 車両運搬具 | L128: 車両運搬具 | N128: 0 | O128: 0 | P128: 0 | Q128: 0
A129: 128 | B129: 0 | D129: 711080-1000 | E129: 111055-1000 | F129: 0 | G129: 0 | H129: 減価償却 | J129: 有形固定資産 | K129: 器具備品 | L129: 器具備品 | N129: 0 | O129: 0 | P129: 0 | Q129: 0
A130: 129 | B130: 0 | D130: 711080-3000 | E130: 111065-1000 | F130: 0 | G130: 0 | H130: 減価償却 | J130: 有形固定資産 | K130: リース資産 | L130: リース資産 | N130: 0 | O130: 0
A131: 130 | B131: 0 | D131: 711080-2000 | E131: 112010-1000 | F131: 0 | G131: 0 | H131: 減価償却 | J131: 無形固定資産 | K131: ダム使用権 | L131: 布目ダム使用権2 | N131: 0 | O131: 0
A132: 131 | B132: 2 | D132: 711080-2000 | E132: 112010-1000 | F132: 1105156 | G132: 1105156 | H132: 減価償却 | L132: 布目ダム使用権 | N132: 4420626 | O132: 1105156 | P132: 13261874 | Q132: 349229365
A133: 132 | B133: 2 | D133: 711080-2000 | E133: 112010-2000 | F133: 167878 | G133: 167878 | H133: 減価償却 | J133: 無形固定資産 | K133: ダム使用権 | L133: 布目ダム（２次）使用権 | N133: 671516 | O133: 167878 | P133: 2014540 | Q133: 69837406
A134: 133 | B134: 2 | D134: 711080-2000 | E134: 112015-1000 | F134: 1432500 | G134: 1432500 | H134: 減価償却 | J134: 無形固定資産 | K134: 水利権 | L134: 上津ダム水利権 | N134: 5730000 | O134: 1432500 | P134: 17190000 | Q134: 17190000
A135: 134 | B135: 0 | D135: 711080-2000 | E135: 112020-1000 | F135: 0 | G135: 0 | H135: 減価償却 | J135: 無形固定資産 | K135: リース資産 | L135: リース資産 | N135: 0 | O135: 0
A136: 135 | B136: 0 | D136: 711080-2000 | E136: 112030-1000 | F136: 0 | G136: 0 | H136: 減価償却 | J136: 無形固定資産 | K136: その他無形固定資産 | L136: その他無形固定資産 | N136: 0 | O136: 0
A137: 136 | B137: 0 | C137: 月ヶ瀬 | F137: 0 | G137: 0 | H137: 減価償却 | N137: 0 | O137: 0
A138: 137 | B138: 0 | D138: 711080-1000 | E138: 111015-1000 | F138: 0 | G138: 0 | H138: 減価償却 | J138: 有形固定資産 | K138: 建物 | L138: 事務所用建物 | N138: 0 | O138: 0 | P138: 0 | Q138: 0
A139: 138 | B139: 2 | D139: 711080-1000 | E139: 111015-2000 | F139: 207911 | G139: 207911 | H139: 減価償却 | J139: 有形固定資産 | K139: 建物 | L139: 施設用建物 | N139: 831646 | O139: 207911 | P139: 2494934 | Q139: 54857978
A140: 139 | B140: 2 | D140: 711080-1000 | E140: 111025-1000 | F140: 71138 | G140: 71138 | H140: 減価償却 | J140: 有形固定資産 | K140: 構築物 | L140: 導水設備 | N140: 284561 | O140: 71138 | P140: 853665 | Q140: 17739372
A141: 140 | B141: 2 | D141: 711080-1000 | E141: 111025-2000 | F141: 545782 | G141: 545782 | H141: 減価償却 | J141: 有形固定資産 | K141: 構築物 | L141: 取水設備 | N141: 2183131 | O141: 545782 | P141: 6549387 | Q141: 163170802
A142: 141 | B142: 2 | D142: 711080-1000 | E142: 111025-3000 | F142: 69559 | G142: 69559 | H142: 減価償却 | J142: 有形固定資産 | K142: 構築物 | L142: えん堤 | N142: 278242 | O142: 69559 | P142: 834714 | Q142: 24505672
A143: 142 | B143: 2 | D143: 711080-1000 | E143: 111025-4000 | F143: 501933 | G143: 501933 | H143: 減価償却 | J143: 有形固定資産 | K143: 構築物 | L143: 浄水設備 | N143: 2007742 | O143: 501933 | P143: 6023206 | Q143: 163452016
A144: 143 | B144: 2 | D144: 711080-1000 | E144: 111025-5000 | F144: 130989 | G144: 130989 | H144: 減価償却 | J144: 有形固定資産 | K144: 構築物 | L144: 配水設備 | N144: 523965 | O144: 130989 | P144: 1571877 | Q144: 66750851
A145: 144 | B145: 2 | D145: 711080-1000 | E145: 111025-6000 | F145: 1100221 | G145: 1100221 | H145: 減価償却 | J145: 有形固定資産 | K145: 構築物 | L145: 配水管設備 | N145: 4400891 | O145: 1100221 | P145: 13202659 | Q145: 407090014
A146: 145 | B146: 2 | D146: 711080-1000 | E146: 111025-7000 | F146: 662686 | G146: 662686 | H146: 減価償却 | J146: 有形固定資産 | K146: 構築物 | L146: 諸設備 | N146: 2650748 | O146: 662686 | P146: 7952236 | Q146: 219539661
A147: 146 | B147: 2 | D147: 711080-1000 | E147: 111035-1000 | F147: 83720 | G147: 83720 | H147: 減価償却 | J147: 有形固定資産 | K147: 機械及び装置 | L147: 電気設備 | N147: 334880 | O147: 83720 | P147: 1004640 | Q147: 86915199
A148: 147 | B148: 2 | D148: 711080-1000 | E148: 111035-2000 | F148: 59224 | G148: 59224 | H148: 減価償却 | J148: 有形固定資産 | K148: 機械及び装置 | L148: ポンプ設備 | N148: 236901 | O148: 59224 | P148: 710693 | Q148: 79959007
A149: 148 | B149: 2 | D149: 711080-1000 | E149: 111035-3000 | F149: 8745 | G149: 8745 | H149: 減価償却 | J149: 有形固定資産 | K149: 機械及び装置 | L149: 塩素滅菌設備 | N149: 34981 | O149: 8745 | P149: 104941 | Q149: 13825107
A150: 149 | B150: 2 | D150: 711080-1000 | E150: 111035-4000 | F150: 242 | G150: 242 | H150: 減価償却 | J150: 有形固定資産 | K150: 機械及び装置 | L150: 量水器 | N150: 972 | O150: 242 | P150: 2908 | Q150: 939815
A151: 150 | B151: 0 | D151: 711080-1000 | E151: 111035-5000 | F151: 0 | G151: 0 | H151: 減価償却 | J151: 有形固定資産 | K151: 機械及び装置 | L151: 通信設備 | N151: =$P151-$O151*8 -> 0 | O151: =ROUNDDOWN(P151/12,0) -> 0 | P151: 0 | Q151: 0
A152: 151 | B152: 2 | D152: 711080-1000 | E152: 111035-6000 | F152: 209211 | G152: 209211 | H152: 減価償却 | J152: 有形固定資産 | K152: 機械及び装置 | L152: 計装設備 | N152: 836852 | O152: 209211 | P152: 2510540 | Q152: 160839281
A153: 152 | B153: 2 | D153: 711080-1000 | E153: 111035-7000 | F153: 690346 | G153: 690346 | H153: 減価償却 | J153: 有形固定資産 | K153: 機械及び装置 | L153: その他機械装置 | N153: 2761394 | O153: 690346 | P153: 8284162 | Q153: 348990963
A154: 153 | B154: 0 | D154: 711080-1000 | E154: 111045-1000 | F154: 0 | G154: 0 | H154: 減価償却 | J154: 有形固定資産 | K154: 車両運搬具 | L154: 車両運搬具 | N154: 0 | O154: 0 | P154: 0 | Q154: 0
A155: 154 | B155: 2 | D155: 711080-1000 | E155: 111055-1000 | F155: 6150 | G155: 6150 | H155: 減価償却 | J155: 有形固定資産 | K155: 器具備品 | L155: 器具備品 | N155: 24600 | O155: 6150 | P155: 73800 | Q155: 410000
A156: 155 | B156: 0 | D156: 711080-3000 | E156: 111065-1000 | F156: 0 | G156: 0 | H156: 減価償却 | J156: 有形固定資産 | K156: リース資産 | L156: リース資産 | N156: 0 | O156: 0
A157: 156 | B157: 0 | D157: 711080-2000 | E157: 112010-1000 | F157: 0 | G157: 0 | H157: 減価償却 | J157: 無形固定資産 | K157: ダム使用権 | L157: 布目ダム使用権2 | N157: 0 | O157: 0
A158: 157 | B158: 0 | F158: 0 | G158: 0 | H158: 減価償却 | L158: 布目ダム使用権 | N158: 0 | O158: 0
A159: 158 | B159: 0 | D159: 711080-2000 | E159: 112010-2000 | F159: 0 | G159: 0 | H159: 減価償却 | J159: 無形固定資産 | K159: ダム使用権 | L159: 布目ダム（２次）使用権 | N159: 0 | O159: 0
A160: 159 | B160: 2 | D160: 711080-2000 | E160: 112015-1000 | F160: 1219431 | G160: 1219431 | H160: 減価償却 | J160: 無形固定資産 | K160: 水利権 | L160: 上津ダム水利権 | N160: 4877726 | O160: 1219431 | P160: 14633174 | Q160: 14633175
A161: 160 | B161: 0 | D161: 711080-2000 | E161: 112020-1000 | F161: 0 | G161: 0 | H161: 減価償却 | J161: 無形固定資産 | K161: リース資産 | L161: リース資産 | N161: 0 | O161: 0
A162: 161 | B162: 0 | D162: 711080-2000 | E162: 112030-1000 | F162: 0 | G162: 0 | H162: 減価償却 | J162: 無形固定資産 | K162: その他無形固定資産 | L162: その他無形固定資産 | N162: 0 | O162: 0
A163: 162 | B163: 29 | C163: 簿記伝票終わり
A164: 999 | B164: 999 | C164: 全伝票終わり

Sheet 長前戻入
A1: ID | B1: 読込FLG | C1: 予算科目CD | D1: 借方科目CD | E1: 貸方科目CD | F1: 金額増 | G1: 金額減 | H1: 摘要 | I1: 発行日 | J1: 簿記項 | K1: 簿記目 | L1: 簿記節 | M1: 簿記略称 | N1: ４月－７月分 | O1: その他の月 | P1: 減価償却費総額
A2: 1 | B2: 10 | C2: 予算伝票始まり
A3: 2 | B3: 11 | C3: 予算科目CD | D3: 借方科目CD | E3: 貸方科目CD | F3: 金額増 | G3: 金額減 | H3: 摘要
A4: 3 | B4: 0 | C4: 都市部有形
A5: 4 | B5: 1 | C5: 110309-0100 | D5: 612050-1000 | E5: 361065-1000 | F5: 20609485 | H5: 長前戻入 | J5: 分担金長期前受金収益化累計額 | K5: 分担金長期前受金収益化累計額 | L5: 分担金長期前受金収益化累計額 | M5: 分担金 | N5: =$P5-$O5*8 -> 82437945 | O5: =ROUNDDOWN($P5/12,0) -> 20609485 | P5: 247313825
A6: 5 | B6: 1 | C6: 110309-0100 | D6: 612050-1000 | E6: 361055-1000 | F6: 5871021 | H6: 長前戻入 | J6: 開発負担金長期前受金収益化累計額 | K6: 開発負担金長期前受金収益化累計額 | L6: 開発負担金長期前受金収益化累計額 | M6: 開発負担金 | N6: 23484092 | O6: 5871021 | P6: 70452260
A7: 6 | B7: 1 | C7: 110309-0100 | D7: 612050-1000 | E7: 361075-1000 | F7: 11221023 | H7: 長前戻入 | J7: 受託負担金長期前受金収益化累計額 | K7: 受託負担金長期前受金収益化累計額 | L7: 受託負担金長期前受金収益化累計額 | M7: 受託負担金 | N7: 44884094 | O7: 11221023 | P7: 134652278
A8: 7 | B8: 1 | C8: 110309-0100 | D8: 612050-1000 | E8: 361035-1000 | F8: 1854069 | H8: 長前戻入 | J8: 補助金長期前受金収益化累計額 | K8: 補助金長期前受金収益化累計額 | L8: 補助金長期前受金収益化累計額 | M8: 補助金 | N8: 7416278 | O8: 1854069 | P8: 22248830
A9: 8 | B9: 1 | C9: 110309-0100 | D9: 612050-1000 | E9: 361025-1000 | F9: 10410952 | H9: 長前戻入 | J9: 負担金長期前受金収益化累計額 | K9: 負担金長期前受金収益化累計額 | L9: 負担金長期前受金収益化累計額 | M9: 負担金 | N9: 41643816 | O9: 10410952 | P9: 124931432
A10: 9 | B10: 1 | C10: 110309-0100 | D10: 612050-1000 | E10: 361015-1000 | F10: 16478387 | H10: 長前戻入 | J10: 受贈財産評価額長期前受金収益化累計額 | K10: 受贈財産評価額長期前受金収益化累計額 | L10: 受贈財産評価額長期前受金収益化累計額 | M10: 受贈財産 | N10: 65913548 | O10: 16478387 | P10: 197740644
A11: 10 | B11: 1 | C11: 110309-0100 | D11: 612050-1000 | E11: 361045-1000 | F11: 5674403 | H11: 長前戻入 | J11: 一般会計補助金長期前受金収益化累計額 | K11: 一般会計補助金長期前受金収益化累計額 | L11: 一般会計補助金長期前受金収益化累計額 | M11: 一般会計補助金 | N11: 22697619 | O11: 5674403 | P11: 68092843
A12: 11 | B12: 0 | C12: 都市部無形 | H12: 長前戻入
A13: 12 | B13: 0 | C13: 110309-0300 | D13: 612050-2000 | E13: 361065-1000 | F13: 0 | H13: 長前戻入 | J13: 分担金長期前受金収益化累計額 | K13: 分担金長期前受金収益化累計額 | L13: 分担金長期前受金収益化累計額 | M13: 分担金 | N13: =$P13-$O13*8 -> 0 | O13: =ROUNDDOWN($P13/12,0) -> 0 | P13: 0
A14: 13 | B14: 0 | C14: 110309-0300 | D14: 612050-2000 | E14: 361055-1000 | F14: 0 | H14: 長前戻入 | J14: 開発負担金長期前受金収益化累計額 | K14: 開発負担金長期前受金収益化累計額 | L14: 開発負担金長期前受金収益化累計額 | M14: 開発負担金 | N14: 0 | O14: 0 | P14: 0
A15: 14 | B15: 0 | C15: 110309-0300 | D15: 612050-2000 | E15: 361075-1000 | F15: 0 | H15: 長前戻入 | J15: 受託負担金長期前受金収益化累計額 | K15: 受託負担金長期前受金収益化累計額 | L15: 受託負担金長期前受金収益化累計額 | M15: 受託負担金 | N15: 0 | O15: 0 | P15: 0
A16: 15 | B16: 0 | C16: 110309-0300 | D16: 612050-2000 | E16: 361035-1000 | F16: 0 | H16: 長前戻入 | J16: 補助金長期前受金収益化累計額 | K16: 補助金長期前受金収益化累計額 | L16: 補助金長期前受金収益化累計額 | M16: 補助金 | N16: 0 | O16: 0 | P16: 0
A17: 16 | B17: 1 | C17: 110309-0300 | D17: 612050-2000 | E17: 361025-1000 | F17: 19016430 | H17: 長前戻入 | J17: 負担金長期前受金収益化累計額 | K17: 負担金長期前受金収益化累計額 | L17: 負担金長期前受金収益化累計額 | M17: 負担金 | N17: 76065724 | O17: 19016430 | P17: 228197164
A18: 17 | B18: 0 | C18: 110309-0300 | D18: 612050-2000 | E18: 361015-1000 | F18: 0 | H18: 長前戻入 | J18: 受贈財産評価額長期前受金収益化累計額 | K18: 受贈財産評価額長期前受金収益化累計額 | L18: 受贈財産評価額長期前受金収益化累計額 | M18: 受贈財産 | N18: 0 | O18: 0 | P18: 0
A19: 18 | B19: 0 | C19: 110309-0300 | D19: 612050-2000 | E19: 361045-1000 | F19: 0 | H19: 長前戻入 | J19: 一般会計補助金長期前受金収益化累計額 | K19: 一般会計補助金長期前受金収益化累計額 | L19: 一般会計補助金長期前受金収益化累計額 | M19: 一般会計補助金 | N19: 0 | O19: 0 | P19: 0
A20: 19 | B20: 0 | C20: 都祁有形 | H20: 長前戻入
A21: 20 | B21: 1 | C21: 110309-0500 | D21: 612050-3000 | E21: 361065-1000 | F21: 181821 | H21: 長前戻入 | J21: 分担金 | K21: 分担金長期前受金収益化累計額 | L21: 分担金長期前受金収益化累計額 | N21: =$P21-$O21*8 -> 727293 | O21: =ROUNDDOWN($P21/12,0) -> 181821 | P21: 2181861
A22: 21 | B22: 1 | C22: 110309-0500 | D22: 612050-3000 | E22: 361055-1000 | F22: 0 | H22: 長前戻入 | J22: 開発負担金 | K22: 開発負担金長期前受金収益化累計額 | L22: 開発負担金長期前受金収益化累計額 | N22: 0 | O22: 0 | P22: 0
A23: 22 | B23: 1 | C23: 110309-0500 | D23: 612050-3000 | E23: 361075-1000 | F23: 9948 | H23: 長前戻入 | J23: 受託負担金 | K23: 受託負担金長期前受金収益化累計額 | L23: 受託負担金長期前受金収益化累計額 | N23: 39796 | O23: 9948 | P23: 119380
A24: 23 | B24: 1 | C24: 110309-0500 | D24: 612050-3000 | E24: 361035-1000 | F24: 6148461 | H24: 長前戻入 | J24: 補助金 | K24: 補助金長期前受金収益化累計額 | L24: 補助金長期前受金収益化累計額 | N24: 24593855 | O24: 6148461 | P24: 73781543
A25: 24 | B25: 1 | C25: 110309-0500 | D25: 612050-3000 | E25: 361025-1000 | F25: 2349422 | H25: 長前戻入 | J25: 負担金 | K25: 負担金長期前受金収益化累計額 | L25: 負担金長期前受金収益化累計額 | N25: 9397696 | O25: 2349422 | P25: 28193072
A26: 25 | B26: 1 | C26: 110309-0500 | D26: 612050-3000 | E26: 361015-1000 | F26: 18791 | H26: 長前戻入 | J26: 受贈財産 | K26: 受贈財産評価額長期前受金収益化累計額 | L26: 受贈財産評価額長期前受金収益化累計額 | N26: 75166 | O26: 18791 | P26: 225494
A27: 26 | B27: 1 | C27: 110309-0500 | D27: 612050-3000 | E27: 361045-1000 | F27: 4191901 | H27: 長前戻入 | J27: 一般会計補助金 | K27: 一般会計補助金長期前受金収益化累計額 | L27: 一般会計補助金長期前受金収益化累計額 | N27: 16767604 | O27: 4191901 | P27: 50302812
A28: 27 | B28: 0 | C28: 都祁無形 | H28: 長前戻入
A29: 28 | B29: 0 | C29: 110309-0700 | D29: 612050-4000 | E29: 361065-1000 | F29: 0 | H29: 長前戻入 | J29: 分担金 | N29: =$P29-$O29*8 -> 0 | O29: =ROUNDDOWN($P29/12,0) -> 0 | P29: 0
A30: 29 | B30: 0 | C30: 110309-0700 | D30: 612050-4000 | E30: 361055-1000 | F30: 0 | H30: 長前戻入 | J30: 開発負担金 | N30: 0 | O30: 0 | P30: 0
A31: 30 | B31: 0 | C31: 110309-0700 | D31: 612050-4000 | E31: 361075-1000 | F31: 0 | H31: 長前戻入 | J31: 受託負担金 | N31: 0 | O31: 0 | P31: 0
A32: 31 | B32: 0 | C32: 110309-0700 | D32: 612050-4000 | E32: 361035-1000 | F32: 0 | H32: 長前戻入 | J32: 補助金 | N32: 0 | O32: 0 | P32: 0
A33: 32 | B33: 0 | C33: 110309-0700 | D33: 612050-4000 | E33: 361025-1000 | F33: 0 | H33: 長前戻入 | J33: 負担金 | N33: 0 | O33: 0 | P33: 0
A34: 33 | B34: 0 | C34: 110309-0700 | D34: 612050-4000 | E34: 361015-1000 | F34: 0 | H34: 長前戻入 | J34: 受贈財産 | N34: 0 | O34: 0 | P34: 0
A35: 34 | B35: 0 | C35: 110309-0700 | D35: 612050-4000 | E35: 361045-1000 | F35: 0 | H35: 長前戻入 | J35: 一般会計補助金 | N35: 0 | O35: 0 | P35: 0
A36: 35 | B36: 0 | C36: 月ヶ瀬有形 | H36: 長前戻入
A37: 36 | B37: 1 | C37: 110309-0900 | D37: 612050-5000 | E37: 361065-1000 | F37: 26490 | H37: 長前戻入 | J37: 分担金 | K37: 分担金長期前受金収益化累計額 | L37: 分担金長期前受金収益化累計額 | N37: =$P37-$O37*8 -> 105961 | O37: =ROUNDDOWN($P37/12,0) -> 26490 | P37: 317881
A38: 37 | B38: 0 | C38: 110309-0900 | D38: 612050-5000 | E38: 361055-1000 | F38: 0 | H38: 長前戻入 | J38: 開発負担金 | K38: 開発負担金長期前受金収益化累計額 | L38: 開発負担金長期前受金収益化累計額 | N38: 0 | O38: 0 | P38: 0
A39: 38 | B39: 1 | C39: 110309-0900 | D39: 612050-5000 | E39: 361075-1000 | F39: 3466 | H39: 長前戻入 | J39: 受託負担金 | K39: 受託負担金長期前受金収益化累計額 | L39: 受託負担金長期前受金収益化累計額 | N39: 13875 | O39: 3466 | P39: 41603
A40: 39 | B40: 1 | C40: 110309-0900 | D40: 612050-5000 | E40: 361035-1000 | F40: 1827030 | H40: 長前戻入 | J40: 補助金 | K40: 補助金長期前受金収益化累計額 | L40: 補助金長期前受金収益化累計額 | N40: 7308128 | O40: 1827030 | P40: 21924368
A41: 40 | B41: 1 | C41: 110309-0900 | D41: 612050-5000 | E41: 361025-1000 | F41: 1226694 | H41: 長前戻入 | J41: 負担金 | K41: 負担金長期前受金収益化累計額 | L41: 負担金長期前受金収益化累計額 | N41: 4906776 | O41: 1226694 | P41: 14720328
A42: 41 | B42: 0 | C42: 110309-0900 | D42: 612050-5000 | E42: 361015-1000 | F42: 0 | H42: 長前戻入 | J42: 受贈財産 | K42: 受贈財産評価額長期前受金収益化累計額 | L42: 受贈財産評価額長期前受金収益化累計額 | N42: 0 | O42: 0 | P42: 0
A43: 42 | B43: 1 | C43: 110309-0900 | D43: 612050-5000 | E43: 361045-1000 | F43: 256698 | H43: 長前戻入 | J43: 一般会計補助金 | K43: 一般会計補助金長期前受金収益化累計額 | L43: 一般会計補助金長期前受金収益化累計額 | N43: 1026796 | O43: 256698 | P43: 3080380
A44: 43 | B44: 0 | C44: 月ヶ瀬無形 | H44: 長前戻入
A45: 44 | B45: 0 | C45: 110309-1100 | D45: 612050-6000 | E45: 361065-1000 | F45: 0 | H45: 長前戻入 | J45: 分担金 | N45: =$P45-$O45*8 -> 0 | O45: =ROUNDDOWN($P45/12,0) -> 0 | P45: 0
A46: 45 | B46: 0 | C46: 110309-1100 | D46: 612050-6000 | E46: 361055-1000 | F46: 0 | H46: 長前戻入 | J46: 開発負担金 | N46: 0 | O46: 0 | P46: 0
A47: 46 | B47: 0 | C47: 110309-1100 | D47: 612050-6000 | E47: 361075-1000 | F47: 0 | H47: 長前戻入 | J47: 受託負担金 | N47: 0 | O47: 0 | P47: 0
A48: 47 | B48: 1 | C48: 110309-1100 | D48: 612050-6000 | E48: 361035-1000 | F48: 805441 | H48: 長前戻入 | J48: 補助金 | N48: 3221768 | O48: 805441 | P48: 9665296
A49: 48 | B49: 1 | C49: 110309-1100 | D49: 612050-6000 | E49: 361025-1000 | F49: 297082 | H49: 長前戻入 | J49: 負担金 | N49: 1188338 | O49: 297082 | P49: 3564994
A50: 49 | B50: 0 | C50: 110309-1100 | D50: 612050-6000 | E50: 361015-1000 | F50: 0 | H50: 長前戻入 | J50: 受贈財産 | N50: 0 | O50: 0 | P50: 0
A51: 50 | B51: 0 | C51: 110309-1100 | D51: 612050-6000 | E51: 361045-1000 | F51: 0 | H51: 長前戻入 | J51: 一般会計補助金 | N51: 0 | O51: 0 | P51: 0
A52: 51 | B52: 19 | C52: 予算伝票終わり | M52: 簿記略称 | N52: ４月－７月分 | O52: その他の月 | P52: 減価償却費総額
A53: 52 | B53: 20 | C53: 簿記伝票始まり
A54: 53 | B54: 21 | C54: 予算科目CD | D54: 借方科目CD | E54: 貸方科目CD | F54: 借方金額 | G54: 貸方金額 | H54: 摘要
A55: 54 | B55: 0 | C55: 都市部有形
A56: 55 | B56: 2 | D56: 612050-1000 | E56: 361065-1000 | F56: 20609485 | G56: 20609485 | H56: 長前戻入 | J56: 分担金長期前受金収益化累計額 | K56: 分担金長期前受金収益化累計額 | L56: 分担金長期前受金収益化累計額 | M56: 分担金 | N56: =$P56-$O56*8 -> 82437945 | O56: =ROUNDDOWN($P56/12,0) -> 20609485 | P56: 247313825
A57: 56 | B57: 2 | D57: 612050-1000 | E57: 361055-1000 | F57: 5871021 | G57: 5871021 | H57: 長前戻入 | J57: 開発負担金長期前受金収益化累計額 | K57: 開発負担金長期前受金収益化累計額 | L57: 開発負担金長期前受金収益化累計額 | M57: 開発負担金 | N57: 23484092 | O57: 5871021 | P57: 70452260
A58: 57 | B58: 2 | D58: 612050-1000 | E58: 361075-1000 | F58: 11221023 | G58: 11221023 | H58: 長前戻入 | J58: 受託負担金長期前受金収益化累計額 | K58: 受託負担金長期前受金収益化累計額 | L58: 受託負担金長期前受金収益化累計額 | M58: 受託負担金 | N58: 44884094 | O58: 11221023 | P58: 134652278
A59: 58 | B59: 2 | D59: 612050-1000 | E59: 361035-1000 | F59: 1854069 | G59: 1854069 | H59: 長前戻入 | J59: 補助金長期前受金収益化累計額 | K59: 補助金長期前受金収益化累計額 | L59: 補助金長期前受金収益化累計額 | M59: 補助金 | N59: 7416278 | O59: 1854069 | P59: 22248830
A60: 59 | B60: 2 | D60: 612050-1000 | E60: 361025-1000 | F60: 10410952 | G60: 10410952 | H60: 長前戻入 | J60: 負担金長期前受金収益化累計額 | K60: 負担金長期前受金収益化累計額 | L60: 負担金長期前受金収益化累計額 | M60: 負担金 | N60: 41643816 | O60: 10410952 | P60: 124931432
A61: 60 | B61: 2 | D61: 612050-1000 | E61: 361015-1000 | F61: 16478387 | G61: 16478387 | H61: 長前戻入 | J61: 受贈財産評価額長期前受金収益化累計額 | K61: 受贈財産評価額長期前受金収益化累計額 | L61: 受贈財産評価額長期前受金収益化累計額 | M61: 受贈財産 | N61: 65913548 | O61: 16478387 | P61: 197740644
A62: 61 | B62: 2 | D62: 612050-1000 | E62: 361045-1000 | F62: 5674403 | G62: 5674403 | H62: 長前戻入 | J62: 一般会計補助金長期前受金収益化累計額 | K62: 一般会計補助金長期前受金収益化累計額 | L62: 一般会計補助金長期前受金収益化累計額 | M62: 一般会計補助金 | N62: 22697619 | O62: 5674403 | P62: 68092843
A63: 62 | B63: 0 | C63: 都市部無形 | H63: 長前戻入
A64: 63 | B64: 0 | D64: 612050-2000 | E64: 361065-1000 | F64: 0 | G64: 0 | H64: 長前戻入 | J64: 分担金長期前受金収益化累計額 | K64: 分担金長期前受金収益化累計額 | L64: 分担金長期前受金収益化累計額 | M64: 分担金 | N64: =$P64-$O64*8 -> 0 | O64: =ROUNDDOWN($P64/12,0) -> 0 | P64: 0
A65: 64 | B65: 0 | D65: 612050-2000 | E65: 361055-1000 | F65: 0 | G65: 0 | H65: 長前戻入 | J65: 開発負担金長期前受金収益化累計額 | K65: 開発負担金長期前受金収益化累計額 | L65: 開発負担金長期前受金収益化累計額 | M65: 開発負担金 | N65: 0 | O65: 0 | P65: 0
A66: 65 | B66: 0 | D66: 612050-2000 | E66: 361075-1000 | F66: 0 | G66: 0 | H66: 長前戻入 | J66: 受託負担金長期前受金収益化累計額 | K66: 受託負担金長期前受金収益化累計額 | L66: 受託負担金長期前受金収益化累計額 | M66: 受託負担金 | N66: 0 | O66: 0 | P66: 0
A67: 66 | B67: 0 | D67: 612050-2000 | E67: 361035-1000 | F67: 0 | G67: 0 | H67: 長前戻入 | J67: 補助金長期前受金収益化累計額 | K67: 補助金長期前受金収益化累計額 | L67: 補助金長期前受金収益化累計額 | M67: 補助金 | N67: 0 | O67: 0 | P67: 0
A68: 67 | B68: 2 | D68: 612050-2000 | E68: 361025-1000 | F68: 19016430 | G68: 19016430 | H68: 長前戻入 | J68: 負担金長期前受金収益化累計額 | K68: 負担金長期前受金収益化累計額 | L68: 負担金長期前受金収益化累計額 | M68: 負担金 | N68: 76065724 | O68: 19016430 | P68: 228197164
A69: 68 | B69: 0 | D69: 612050-2000 | E69: 361015-1000 | F69: 0 | G69: 0 | H69: 長前戻入 | J69: 受贈財産評価額長期前受金収益化累計額 | K69: 受贈財産評価額長期前受金収益化累計額 | L69: 受贈財産評価額長期前受金収益化累計額 | M69: 受贈財産 | N69: 0 | O69: 0 | P69: 0
A70: 69 | B70: 0 | D70: 612050-2000 | E70: 361045-1000 | F70: 0 | G70: 0 | H70: 長前戻入 | J70: 一般会計補助金長期前受金収益化累計額 | K70: 一般会計補助金長期前受金収益化累計額 | L70: 一般会計補助金長期前受金収益化累計額 | M70: 一般会計補助金 | N70: 0 | O70: 0 | P70: 0
A71: 70 | B71: 0 | C71: 都祁有形 | H71: 長前戻入
A72: 71 | B72: 2 | D72: 612050-3000 | E72: 361065-1000 | F72: 181821 | G72: 181821 | H72: 長前戻入 | J72: 分担金 | K72: 分担金長期前受金収益化累計額 | L72: 分担金長期前受金収益化累計額 | N72: =$P72-$O72*8 -> 727293 | O72: =ROUNDDOWN($P72/12,0) -> 181821 | P72: 2181861
A73: 72 | B73: 2 | D73: 612050-3000 | E73: 361055-1000 | F73: 0 | G73: 0 | H73: 長前戻入 | J73: 開発負担金 | K73: 開発負担金長期前受金収益化累計額 | L73: 開発負担金長期前受金収益化累計額 | N73: 0 | O73: 0 | P73: 0
A74: 73 | B74: 2 | D74: 612050-3000 | E74: 361075-1000 | F74: 9948 | G74: 9948 | H74: 長前戻入 | J74: 受託負担金 | K74: 受託負担金長期前受金収益化累計額 | L74: 受託負担金長期前受金収益化累計額 | N74: 39796 | O74: 9948 | P74: 119380
A75: 74 | B75: 2 | D75: 612050-3000 | E75: 361035-1000 | F75: 6148461 | G75: 6148461 | H75: 長前戻入 | J75: 補助金 | K75: 補助金長期前受金収益化累計額 | L75: 補助金長期前受金収益化累計額 | N75: 24593855 | O75: 6148461 | P75: 73781543
A76: 75 | B76: 2 | D76: 612050-3000 | E76: 361025-1000 | F76: 2349422 | G76: 2349422 | H76: 長前戻入 | J76: 負担金 | K76: 負担金長期前受金収益化累計額 | L76: 負担金長期前受金収益化累計額 | N76: 9397696 | O76: 2349422 | P76: 28193072
A77: 76 | B77: 2 | D77: 612050-3000 | E77: 361015-1000 | F77: 18791 | G77: 18791 | H77: 長前戻入 | J77: 受贈財産 | K77: 受贈財産評価額長期前受金収益化累計額 | L77: 受贈財産評価額長期前受金収益化累計額 | N77: 75166 | O77: 18791 | P77: 225494
A78: 77 | B78: 2 | D78: 612050-3000 | E78: 361045-1000 | F78: 4191901 | G78: 4191901 | H78: 長前戻入 | J78: 一般会計補助金 | K78: 一般会計補助金長期前受金収益化累計額 | L78: 一般会計補助金長期前受金収益化累計額 | N78: 16767604 | O78: 4191901 | P78: 50302812
A79: 78 | B79: 0 | C79: 都祁無形 | H79: 長前戻入
A80: 79 | B80: 0 | D80: 612050-4000 | E80: 361065-1000 | F80: 0 | G80: 0 | H80: 長前戻入 | J80: 分担金 | N80: =$P80-$O80*8 -> 0 | O80: =ROUNDDOWN($P80/12,0) -> 0 | P80: 0
A81: 80 | B81: 0 | D81: 612050-4000 | E81: 361055-1000 | F81: 0 | G81: 0 | H81: 長前戻入 | J81: 開発負担金 | N81: 0 | O81: 0 | P81: 0
A82: 81 | B82: 0 | D82: 612050-4000 | E82: 361075-1000 | F82: 0 | G82: 0 | H82: 長前戻入 | J82: 受託負担金 | N82: 0 | O82: 0 | P82: 0
A83: 82 | B83: 0 | D83: 612050-4000 | E83: 361035-1000 | F83: 0 | G83: 0 | H83: 長前戻入 | J83: 補助金 | N83: 0 | O83: 0 | P83: 0
A84: 83 | B84: 0 | D84: 612050-4000 | E84: 361025-1000 | F84: 0 | G84: 0 | H84: 長前戻入 | J84: 負担金 | N84: 0 | O84: 0 | P84: 0
A85: 84 | B85: 0 | D85: 612050-4000 | E85: 361015-1000 | F85: 0 | G85: 0 | H85: 長前戻入 | J85: 受贈財産 | N85: 0 | O85: 0 | P85: 0
A86: 85 | B86: 0 | D86: 612050-4000 | E86: 361045-1000 | F86: 0 | G86: 0 | H86: 長前戻入 | J86: 一般会計補助金 | N86: 0 | O86: 0 | P86: 0
A87: 86 | B87: 0 | C87: 月ヶ瀬有形 | H87: 長前戻入
A88: 87 | B88: 2 | D88: 612050-5000 | E88: 361065-1000 | F88: 26490 | G88: 26490 | H88: 長前戻入 | J88: 分担金 | K88: 分担金長期前受金収益化累計額 | L88: 分担金長期前受金収益化累計額 | N88: =$P88-$O88*8 -> 105961 | O88: =ROUNDDOWN($P88/12,0) -> 26490 | P88: 317881
A89: 88 | B89: 0 | D89: 612050-5000 | E89: 361055-1000 | F89: 0 | G89: 0 | H89: 長前戻入 | J89: 開発負担金 | K89: 開発負担金長期前受金収益化累計額 | L89: 開発負担金長期前受金収益化累計額 | N89: 0 | O89: 0 | P89: 0
A90: 89 | B90: 2 | D90: 612050-5000 | E90: 361075-1000 | F90: 3466 | G90: 3466 | H90: 長前戻入 | J90: 受託負担金 | K90: 受託負担金長期前受金収益化累計額 | L90: 受託負担金長期前受金収益化累計額 | N90: 13875 | O90: 3466 | P90: 41603
A91: 90 | B91: 2 | D91: 612050-5000 | E91: 361035-1000 | F91: 1827030 | G91: 1827030 | H91: 長前戻入 | J91: 補助金 | K91: 補助金長期前受金収益化累計額 | L91: 補助金長期前受金収益化累計額 | N91: 7308128 | O91: 1827030 | P91: 21924368
A92: 91 | B92: 2 | D92: 612050-5000 | E92: 361025-1000 | F92: 1226694 | G92: 1226694 | H92: 長前戻入 | J92: 負担金 | K92: 負担金長期前受金収益化累計額 | L92: 負担金長期前受金収益化累計額 | N92: 4906776 | O92: 1226694 | P92: 14720328
A93: 92 | B93: 0 | D93: 612050-5000 | E93: 361015-1000 | F93: 0 | G93: 0 | H93: 長前戻入 | J93: 受贈財産 | K93: 受贈財産評価額長期前受金収益化累計額 | L93: 受贈財産評価額長期前受金収益化累計額 | N93: 0 | O93: 0 | P93: 0
A94: 93 | B94: 2 | D94: 612050-5000 | E94: 361045-1000 | F94: 256698 | G94: 256698 | H94: 長前戻入 | J94: 一般会計補助金 | K94: 一般会計補助金長期前受金収益化累計額 | L94: 一般会計補助金長期前受金収益化累計額 | N94: 1026796 | O94: 256698 | P94: 3080380
A95: 94 | B95: 0 | C95: 月ヶ瀬無形 | H95: 長前戻入
A96: 95 | B96: 0 | D96: 612050-6000 | E96: 361065-1000 | F96: 0 | G96: 0 | H96: 長前戻入 | J96: 分担金 | N96: =$P96-$O96*8 -> 0 | O96: =ROUNDDOWN($P96/12,0) -> 0 | P96: 0
A97: 96 | B97: 0 | D97: 612050-6000 | E97: 361055-1000 | F97: 0 | G97: 0 | H97: 長前戻入 | J97: 開発負担金 | N97: 0 | O97: 0 | P97: 0
A98: 97 | B98: 0 | D98: 612050-6000 | E98: 361075-1000 | F98: 0 | G98: 0 | H98: 長前戻入 | J98: 受託負担金 | N98: 0 | O98: 0 | P98: 0
A99: 98 | B99: 2 | D99: 612050-6000 | E99: 361035-1000 | F99: 805441 | G99: 805441 | H99: 長前戻入 | J99: 補助金 | N99: 3221768 | O99: 805441 | P99: 9665296
A100: 99 | B100: 2 | D100: 612050-6000 | E100: 361025-1000 | F100: 297082 | G100: 297082 | H100: 長前戻入 | J100: 負担金 | N100: 1188338 | O100: 297082 | P100: 3564994
A101: 100 | B101: 0 | D101: 612050-6000 | E101: 361015-1000 | F101: 0 | G101: 0 | H101: 長前戻入 | J101: 受贈財産 | N101: 0 | O101: 0 | P101: 0
A102: 101 | B102: 0 | D102: 612050-6000 | E102: 361045-1000 | F102: 0 | G102: 0 | H102: 長前戻入 | J102: 一般会計補助金 | N102: 0 | O102: 0 | P102: 0
A103: 102 | B103: 29 | C103: 簿記伝票終わり
A104: 999 | B104: 999 | C104: 全伝票終わり

Sheet 料金日報
A1: ID | B1: 読込FLG | C1: 予算科目CD | D1: 借方科目CD | E1: 貸方科目CD | F1: 金額増 | G1: 金額減 | H1: 摘要 | I1: 発行日
A2: 1 | B2: 10 | C2: 予算伝票始まり
A3: 2 | B3: 11 | C3: 予算科目CD | D3: 借方科目CD | E3: 貸方科目CD | F3: 金額増 | G3: 金額減 | H3: 摘要
A4: 3 | B4: 0 | C4: 口座
A5: 4 | B5: 0 | C5: 都市部
A6: 5 | B6: 1 | C6: 110101-0100 | F6: 94380298 | H6: 都市部水道料金 | I6: 2020-11-18
A7: 6 | B7: 0 | C7: 110101-0100 | F7: 67182693 | H7: 都市部公共下水 | I7: 2020-11-18
A8: 7 | B8: 0 | C8: 110101-0100 | F8: 543801 | H8: 都市部農業集落排水 | I8: 2020-11-18
A9: 8 | B9: 0 | C9: 都祁
A10: 9 | B10: 1 | C10: 110101-0300 | F10: 134014 | H10: 都祁水道料金 | I10: 2020-11-18
A11: 10 | B11: 0 | C11: 110101-0300 | F11: 41321 | H11: 都祁公共下水 | I11: 2020-11-18
A12: 11 | B12: 0 | C12: 110101-0300 | F12: 77252 | H12: 都祁農業集落排水 | I12: 2020-11-18
A13: 12 | B13: 0 | C13: 月ヶ瀬
A14: 13 | B14: 1 | C14: 110101-0500 | F14: 1322218 | H14: 月ヶ瀬水道料金 | I14: 2020-11-18
A15: 14 | B15: 0 | C15: 110101-0500 | H15: 月ヶ瀬公共下水 | I15: 2020-11-18
A16: 15 | B16: 0 | C16: 110101-0500 | H16: 月ヶ瀬農業集落排水 | I16: 2020-11-18
A17: 16 | B17: 19 | C17: 予算伝票終わり
A18: 17 | B18: 20 | C18: 簿記伝票始まり
A19: 18 | B19: 21 | C19: 予算科目CD | D19: 借方科目CD | E19: 貸方科目CD | F19: 借方金額 | G19: 貸方金額 | H19: 摘要
A20: 19 | C20: 口座
A21: 20 | B21: 0 | C21: 都市部
A22: 21 | B22: 2 | C22: 110101-0100 | D22: 152010-1000 | E22: 611010-1000 | H22: 水道料金
A23: 22 | B23: 2 | D23: 152010-1000 | E23: 335530-1000 | H23: 公共下水
A24: 23 | B24: 2 | D24: 151010-1000 | H24: 農業集落排水
A25: 24 | B25: 0 | C25: 都祁
A26: 25 | B26: 2 | C26: 110101-0300 | D26: 152010-1000 | E26: 611010-1000 | H26: 水道料金
A27: 26 | B27: 2 | D27: 151010-1000 | E27: 335530-3000 | H27: 公共下水
A28: 27 | B28: 2 | D28: 151010-1000 | H28: 農業集落排水
A29: 28 | B29: 0 | C29: 月ヶ瀬
A30: 29 | B30: 2 | C30: 110101-0500 | D30: 152010-1000 | E30: 611010-1000 | H30: 水道料金
A31: 30 | B31: 0 | D31: 151010-1000 | E31: 335530-5000 | H31: 公共下水
A32: 31 | B32: 2 | D32: 151010-1000 | H32: 農業集落排水
A33: 32 | B33: 29 | C33: 簿記伝票終わり
A34: 999 | B34: 999 | C34: 全伝票終わり

Sheet 入力様式の説明
A1: ID | B1: 読込FLG | C1: 予算科目CD | D1: 借方科目CD | E1: 貸方科目CD | F1: 金額増 | G1: 金額減 | H1: 摘要 | I1: 発行日
A2: 1 | B2: 10 | C2: 予算伝票始まり
A3: 2 | B3: 11 | C3: 予算科目CD | D3: 借方科目CD | E3: 貸方科目CD | F3: 金額増 | G3: 金額減 | H3: 摘要
A4: 3
A5: 4
A6: 5
A7: 6
A8: 7
A9: 8
A10: 9
A11: 10
A12: 11
A13: 12
A14: 13
A15: 14
A16: 15
A17: 16 | B17: 19 | C17: 予算伝票終わり
A18: 17 | B18: 20 | C18: 簿記伝票始まり
A19: 18 | B19: 21 | C19: 予算科目CD | D19: 借方科目CD | E19: 貸方科目CD | F19: 借方金額 | G19: 貸方金額 | H19: 摘要
A20: 19
A21: 20
A22: 21
A23: 22
A24: 23
A25: 24
A26: 25
A27: 26
A28: 27
A29: 28
A30: 29
A31: 30
A32: 31
A33: 32 | B33: 29 | C33: 簿記伝票終わり
A34: 999 | B34: 999 | C34: 全伝票終わり
A36: 入力フォーマットの規則について
A37: 1 | B37: ID=999 | C37: ここまで行単位で読込みます
A38: 2 | B38: 読込FLG=10 | C38: 予算伝票の読込の始まり
B39: 読込FLG=11 | C39: 予算伝票のフィールド名の読込
B40: 読込FLG=1 | C40: 予算伝票のデータの読込
B41: 読込FLG=19 | C41: 予算伝票の読込の終わり
B42: 読込FLG=20 | C42: 簿記伝票の読込の始まり
B43: 読込FLG=21 | C43: 簿記伝票のフィールド名の読込
B44: 読込FLG=2 | C44: 簿記伝票のデータの読込
B45: 読込FLG=29 | C45: 簿記伝票の読込の終わり
B46: 読込FLG=999 | C46: 全伝票の読込の終わり
B47: 読込FLG=0 | C47: 読込みません。合計、見出しなど関連情報を記載します。
